Cogmind - Beta 11.1 @@@ ROGUE MODE // 2022.06.06 @ 22:57:35 Player: woegarden Result: Destroyed by G-47 Trooper with Particle Gun Performance ------------- Evolutions (1) 500 Regions Visited (5) 1000 Robots Destroyed (46) 230 Value Destroyed (1210) 1210 Prototype IDs (4) 80 Alien Tech Used (0) 0 Bonus (-116) -116 TOTAL SCORE: 2904 Bonus ------- High Alert Combat Kills 70 Follower Combat Kills 35 Friendly Fire -221 Cogmind --------- Core Integrity 0/400 Matter 285/300 Energy 270/280 System Corruption 0% Temperature Cool (9) Movement Walking (120) Location -8/Mines Parts ------- > --- POWER (1) -------- Cooled Ion Engine > --- PROPULSION (2) --- Aluminum Leg Improved Aluminum Leg > --- UTILITY (4) ------ Medium Storage Unit Improved Signal Interpreter Improved Terrain Scanner Improved Targeting Computer > --- WEAPON (2) ------- Katana > --- INVENTORY (10) --- Improved Ion Engine Light Angular Momentum Engine Cargo Storage Unit Beam Rifle Beamcaster Improved Assault Rifle Enhanced Autogun Rocket Launcher Peak State ------------ > --- POWER ------------ Cooled Ion Engine > --- PROPULSION ------- Aluminum Leg Carbon-fiber Leg > --- UTILITY ---------- Medium Storage Unit Improved Signal Interpreter Improved Terrain Scanner Improved Targeting Computer > --- WEAPON ----------- Improved Assault Rifle Enhanced Autogun > --- INVENTORY -------- Improved Ion Engine Light Nuclear Core Cargo Storage Unit Beam Rifle Advanced Beam Cannon Improved Assault Rifle Enhanced Autogun Rocket Launcher Katana [Rating: 25] Favorites ----------- Power Cooled Ion Engine Engine Cooled Ion Engine Propulsion Aluminum Leg Leg Aluminum Leg Wheel Wheel Hover Unit Hover Unit Utility Improved Signal Interpreter Device Improved Terrain Scanner Storage Medium Storage Unit Processor Improved Signal Interpreter Protection Light Armor Plating Weapon Improved Assault Rifle Energy Gun Small Laser Energy Cannon Advanced Beam Cannon Ballistic Gun Improved Assault Rifle Slashing Weapon Katana Build | -11 -10 -9 -9 -9 -8 ------- Run | Scr Mat Mat Min Exi Min Slots Evolved 2 | . . 2 . . . Power . | . . . . . . Propulsion . | . . . . . . Utility 2 | . . 2 . . . Weapon . | . . . . . . Parts Attached 37 | . 3 29 1 2 2 Power 8 | . . 8 . . . Engine 8 | . . 8 . . . Core . | . . . . . . Reactor . | . . . . . . Propulsion 11 | . 2 7 . 1 1 Treads . | . . . . . . Leg 8 | . . 6 . 1 1 Wheel 1 | . . 1 . . . Hover 2 | . 2 . . . . Flight . | . . . . . . Utility 12 | . 1 10 1 . . Device 4 | . 1 2 1 . . Storage 3 | . . 3 . . . Processor 2 | . . 2 . . . Hackware . | . . . . . . Protection 3 | . . 3 . . . Artifact . | . . . . . . Weapon 6 | . . 4 . 1 1 Energy Gun 1 | . . 1 . . . Energy Cannon 1 | . . . . 1 . Ballistic Gun 3 | . . 3 . . . Ballistic Cannon . | . . . . . . Launcher . | . . . . . . Special Weapon . | . . . . . . Impact Weapon . | . . . . . . Slashing Weapon 1 | . . . . . 1 Piercing Weapon . | . . . . . . Special Melee Weapon . | . . . . . . Unidentified Prototypes 4 | . . 3 . 1 . Parts Lost 13 | . . 11 1 . 1 Power 2 | . . 2 . . . Propulsion 6 | . . 5 . . 1 Utility 5 | . . 4 1 . . Weapon . | . . . . . . Highest Loss Streak 3 | . . 3 1 . 1 To Critical Strikes . | . . . . . . Average Slot Usage (%) 95 | . 90 87 95 100 100 Engine 10 | . 14 10 11 11 11 Leg 20 | . 21 16 22 22 22 Device 10 | . 8 11 6 11 11 Storage 11 | . 14 11 11 11 11 Processor 17 | . . 7 22 22 22 Protection 1 | . . 5 . . . Energy Gun 2 | . 14 7 . . . Energy Cannon 1 | . . . . 3 11 Ballistic Gun 17 | . 11 13 22 18 11 Naked Turns . | . . . . . . Heaviest Build 149 | 12 14 149 25 26 26 Greatest Support 25 | 20 20 20 20 25 25 Greatest Overweight (x) 7 | . 1 7 1 1 2 Average Overweight (x) . | . . 1 1 . 1 Largest Inventory Capacity 30 | . 8 30 10 10 10 Average Capacity 9 | . 8 10 10 10 10 Most Carried 10 | . 8 10 10 10 10 Average Carried 9 | . 6 7 10 9 9 Final Capacity 10 | 8 8 10 10 10 10 Final Carried 10 | 6 7 10 10 10 9 Class Distribution -------------------- 98% | Mutant Dominant Class ---------------- Mutant | -10/Materials Mutant | -9/Materials Mutant | -9/Mines Mutant | -9/Exiles Mutant | -8/Mines Resources | -11 -10 -9 -9 -9 -8 ----------- Run | Scr Mat Mat Min Exi Min Matter Collected 1011 | 200 22 635 81 58 15 Remotely . | . . . . . . Salvage Created 2199 | . 109 1721 222 89 58 Parts 105 | . 7 76 14 4 4 Haulers Intercepted 3 | . . 3 . . . Recyclers Shooed 10 | . 2 7 1 . . Parts Field Recycled . | . . . . . . Retrieved Matter . | . . . . . . Parts Self-Destructed . | . . . . . . Prevented . | . . . . . . Kills | -11 -10 -9 -9 -9 -8 ------- Run | Scr Mat Mat Min Exi Min Combat Hostiles Destroyed 31 | . 2 24 3 . 2 Guns 30 | . 2 24 3 . 1 Cannons 1 | . . . . . 1 Classes Destroyed 10 | . 2 5 2 1 . Tunneler 1 | . . . 1 . . Hauler 3 | . . 3 . . . Recycler 7 | . . 5 2 . . Watcher 2 | . 1 1 . . . Swarmer 4 | . . . 3 . 1 Grunt 19 | . 2 17 . . . Brawler 1 | . . 1 . . . Duelist 2 | . . 1 . . 1 Sentry 5 | . . 5 . . . Zionite 1 | . . . . 1 . Thug 1 | . . . . 1 . Best Kill Streak 5 | . 3 5 3 . 1 Combat Bots Only 4 | . 2 4 3 . 1 Max Kills in Single Turn 2 | . 1 2 2 1 1 Gunslinging 1 | . . 1 . . . Exploded . | . . . . . . Melee . | . . . . . . Uniques/NPCs Destroyed . | . . . . . . Combat | -11 -10 -9 -9 -9 -8 -------- Run | Scr Mat Mat Min Exi Min Damage Taken 1962 | . 210 1365 32 . 355 Core 446 | . 39 292 8 . 107 Absorbed by Shields . | . . . . . . Core Remaining (%) 92 | 100 84 . . . . Volleys Fired 123 | . 14 90 8 6 5 Largest 2 | . 2 2 2 2 2 Hottest 91 | . 60 80 48 91 91 Shots Fired 242 | . 26 178 16 12 10 Gun 236 | . 26 178 16 11 5 Cannon 6 | . . . . 1 5 Launcher . | . . . . . . Special . | . . . . . . Kinetic 152 | . 12 108 16 11 5 Thermal 90 | . 14 70 . 1 5 Explosive . | . . . . . . Electromagnetic . | . . . . . . Robot Hit Streak 12 | . 8 12 3 2 4 Robot Miss Streak 8 | . 4 4 3 8 2 Penetration Max . | . . . . . . Secondary Targets 5 | . . 5 . . . Max Gunslinging Chain 1 | . . 1 . . . Shots Hit Robots 154 | . 17 121 6 4 6 Core Hits 73 | . 10 50 7 4 2 Critical Kills 2 | . . 2 . . . Critical Parts Destroyed . | . . . . . . Critical Strikes 2 | . . 2 . . . Destroy 2 | . . 2 . . . Melee Attacks . | . . . . . . Impact . | . . . . . . Slashing . | . . . . . . Piercing . | . . . . . . Sneak Attacks . | . . . . . . Combat Hostiles . | . . . . . . Follow-up Attacks . | . . . . . . Damage Inflicted 2334 | . 168 1802 171 89 104 Guns 2236 | . 168 1798 161 68 41 Cannons 84 | . . . . 21 63 Explosions . | . . . . . . Melee . | . . . . . . Ramming 14 | . . 4 10 . . Kinetic 1634 | . 61 1303 161 68 41 Thermal 686 | . 107 495 . 21 63 Explosive . | . . . . . . Electromagnetic . | . . . . . . Impact . | . . . . . . Slashing . | . . . . . . Piercing . | . . . . . . Highest Corruption . | . . . . . . Average Corruption . | . . . . . . Corruption Purged . | . . . . . . Corruption Blocked . | . . . . . . Overload Shots . | . . . . . . Overflow Damage . | . . . . . . Projectiles . | . . . . . . Explosions . | . . . . . . Melee . | . . . . . . Knockbacks 1 | . . . 1 . . Impact 1 | . . . 1 . . Kinetic . | . . . . . . Secondary . | . . . . . . Self-Inflicted Damage . | . . . . . . Shots . | . . . . . . Rammed . | . . . . . . Targets Rammed 3 | . . 1 2 . . Kicked 3 | . . 1 2 . . Crushed . | . . . . . . Highest Temperature 141 | . 66 141 . 15 60 Average Temperature 31 | . 30 35 . 10 22 Received Heat Transfer 915 | . 84 675 . . 156 Siege Activations . | . . . . . . Robots Corrupted . | . . . . . . Combat Hostiles . | . . . . . . Parts Fried . | . . . . . . Impact Corruptions . | . . . . . . Robots Melted . | . . . . . . Combat Hostiles . | . . . . . . Parts Melted . | . . . . . . Heat Transferred 1523 | . 250 1125 . 37 111 Parts Sabotaged . | . . . . . . Parts Stolen . | . . . . . . Parts Stripped . | . . . . . . Power Chain Reactions . | . . . . . . Missiles Intercepted . | . . . . . . Alert | -11 -10 -9 -9 -9 -8 ------- Run | Scr Mat Mat Min Exi Min Peak Influence 521 | . 102 521 272 . 117 Initial 202 | . . 42 202 . . Average 202 | . 33 287 137 . 98 Maximum Alert Level 2 | . . 2 1 . . Low Security (%) 45 | . 100 17 64 . 100 Level 1 47 | . . 67 35 . . Level 2 7 | . . 14 . . . Level 3 . | . . . . . . Level 4 . | . . . . . . Level 5 . | . . . . . . High Security . | . . . . . . Max Security . | . . . . . . Squads Dispatched 4 | . . 4 . . . Investigation 2 | . . 2 . . . Extermination . | . . . . . . Reinforcement 2 | . . 2 . . . Assault . | . . . . . . Garrison . | . . . . . . Intercept . | . . . . . . Searches Triggered . | . . . . . . Construction Impeded . | . . . . . . Haulers Reinforced . | . . . . . . Active Scanning Responses . | . . . . . . Cargo Convoy Interrupts . | . . . . . . Stealth | -11 -10 -9 -9 -9 -8 --------- Run | Scr Mat Mat Min Exi Min Distress Signals 5 | . 1 3 1 . . Communications Jammed . | . . . . . . Distress Signals . | . . . . . . Times Spotted 72 | . 9 50 7 . 6 Peak Tracking Total 5 | . 3 5 4 . 3 Tactical Retreats 8 | . 1 7 . . . Traps | -11 -10 -9 -9 -9 -8 ------- Run | Scr Mat Mat Min Exi Min Traps Triggered 2 | . . 2 . . . Indirectly . | . . . . . . Trap Hack Attempts . | . . . . . . Triggered . | . . . . . . Disarmed . | . . . . . . Reprogrammed . | . . . . . . Reused . | . . . . . . Traps Extracted . | . . . . . . Installed . | . . . . . . Triggered . | . . . . . . Machines | -11 -10 -9 -9 -9 -8 ---------- Run | Scr Mat Mat Min Exi Min Machines Disabled 3 | . . 2 . . 1 Max in Single Turn 1 | . . 1 . . . Machines Sabotaged . | . . . . . . Garrisons Compromised . | . . . . . . Overloaded Fab Kills . | . . . . . . Hacking | -11 -10 -9 -9 -9 -8 --------- Run | Scr Mat Mat Min Exi Min Machines Accessed 1 | . 1 . . . . Terminals 1 | . 1 . . . . Fabricators . | . . . . . . Repair Stations . | . . . . . . Recycling Units . | . . . . . . Scanalyzers . | . . . . . . Garrison Access . | . . . . . . Total Hacks 1 | . 1 . . . . Successful . | . . . . . . Failed 1 | . 1 . . . . Catastrophic . | . . . . . . Database Lockouts . | . . . . . . Manual 1 | . 1 . . . . Terminals 1 | . 1 . . . . Fabricators . | . . . . . . Repair Stations . | . . . . . . Recycling Units . | . . . . . . Scanalyzers . | . . . . . . Garrison Access . | . . . . . . Terminal Hacks . | . . . . . . Fabricator Hacks . | . . . . . . Repair Station Hacks . | . . . . . . Recycling Unit Hacks . | . . . . . . Scanalyzer . | . . . . . . Garrison Access Hacks . | . . . . . . Unauthorized Hacks . | . . . . . . Terminals . | . . . . . . Fabricators . | . . . . . . Repair Stations . | . . . . . . Recycling Units . | . . . . . . Scanalyzers . | . . . . . . Garrison Access . | . . . . . . Data Cores Recovered . | . . . . . . Used . | . . . . . . Hacking Detections . | . . . . . . Full Trace Events . | . . . . . . Feedback Events . | . . . . . . Feedback Blocked . | . . . . . . Robot Schematics Acquired . | . . . . . . Robots Built . | . . . . . . Authchips . | . . . . . . Time . | . . . . . . Total Robot Build Rating . | . . . . . . Part Schematics Acquired . | . . . . . . Parts Built . | . . . . . . Authchips . | . . . . . . Time . | . . . . . . Total Part Build Rating . | . . . . . . Parts Repaired . | . . . . . . Time . | . . . . . . Parts Recycled . | . . . . . . Recycled Matter . | . . . . . . Retrieved Matter . | . . . . . . Retrieved Components . | . . . . . . Parts Scanalyzed . | . . . . . . Part Schematics Acquired . | . . . . . . Parts Damaged . | . . . . . . Bothacking | -11 -10 -9 -9 -9 -8 ------------ Run | Scr Mat Mat Min Exi Min Used RIF Installer . | . . . . . . Robots Hacked . | . . . . . . Non-combat . | . . . . . . Combat . | . . . . . . Robot Hacks Applied . | . . . . . . Relay Couplers Released . | . . . . . . Fabnet Peak Effective % . | . . . . . . Robots Rewired . | . . . . . . Allies Hacked . | . . . . . . Hacks Repelled . | . . . . . . Allies | -11 -10 -9 -9 -9 -8 -------- Run | Scr Mat Mat Min Exi Min Total Allies 5 | . . . 5 . . Largest Group 5 | . . . 5 5 3 Highest-Rated Group 80 | . . . 80 80 40 Highest-Rated Ally 31 | . . . 31 31 16 Total Orders . | . . . . . . Ally Attacks 27 | . . . 11 . 16 Total Damage 449 | . . . 122 . 327 Kills 7 | . . . 3 . 4 Allies Corrupted . | . . . . . . Allies Melted . | . . . . . . Intel | -11 -10 -9 -9 -9 -8 ------- Run | Scr Mat Mat Min Exi Min Robot Analysis Total . | . . . . . . Derelict Logs Recovered 1 | . . . 1 . . Drone Launches . | . . . . . . Drone Recoveries . | . . . . . . Exploration | -11 -10 -9 -9 -9 -8 ------------- Run | Scr Mat Mat Min Exi Min Turns Passed 6357 | . 242 1463 1129 3433 90 Spaces Moved 2410 | 1 164 634 552 1022 37 Core 14 | . . 14 . . . Treads . | . . . . . . Legs 2212 | 1 122 478 552 1022 37 Wheels 7 | . . 7 . . . Hover 177 | . 42 135 . . . Flight . | . . . . . . Fastest Speed 110 | 120 116 110 190 120 190 Average Speed 182 | 120 118 179 190 189 191 Slowest Speed 610 | 120 120 610 190 190 260 Overloaded Moves . | . . . . . . Propulsion Burnouts . | . . . . . . Robots Hopped . | . . . . . . Cave-ins Triggered . | . . . . . . Exploration Rate (%) 51 | 2 39 65 99 92 14 Regions Visited 5 Branch Regions 3 Pre-discovered Areas . | . . . . . . Known Exits Taken 3 | . . 1 1 1 . Unknown Exits Taken 2 | 1 1 . . . . Scrap Searched 1 | . . . 1 . . Spaces Dug . | . . . . . . Terrain Destroyed . | . . . . . . Melee . | . . . . . . Projectile . | . . . . . . AOE . | . . . . . . Terrain Rammed . | . . . . . . Walls Destroyed . | . . . . . . Machines Disabled . | . . . . . . Actions | -11 -10 -9 -9 -9 -8 --------- Run | Scr Mat Mat Min Exi Min Total 4170 | . 187 812 618 2507 46 Wait 1557 | . 2 26 56 1473 . Move 2405 | . 163 633 551 1021 37 Hop . | . . . . . . Pick Up 17 | . 2 13 . 2 . Fast Attach 18 | . 1 15 1 . 1 Attach 6 | . . 6 . . . Detach 3 | . 1 2 . . . Swap 13 | . 2 8 . 2 1 Drop 25 | . 2 18 . 3 2 Fire 123 | . 14 90 8 6 5 Melee . | . . . . . . Ram . | . . . . . . Kick 3 | . . 1 2 . . Crush . | . . . . . . Escape Stasis . | . . . . . . Rewire . | . . . . . . Trap . | . . . . . . Miscellaneous . | . . . . . . Route ------- -11/Scrapyard -10/Materials -9/Materials (discovered 2 exits: [*Mat] / *Min) -9/Mines (discovered 3 exits: [*Mat x2] / *Exi) -9/Exiles (discovered 2 exits: *Min x2) -8/Mines History --------- Turn | Location | Event 1 | -11/Scrapyard | Discovered new exit (range 0) 1 | -11/Scrapyard | Entered Materials 227 | -10/Materials | Discovered new exit (range 14) 243 | -10/Materials | Entered another Materials area 243 | -9/Materials | Evolved 2 slots: Utility x2 307 | -9/Materials | Build established: Mutant 1185 | -9/Materials | Discovered new exit (range 4) 1298 | -9/Materials | Discovered new exit (range 13) 1422 | -9/Materials | Lost 3 parts (1n2u) 1536 | -9/Materials | Core integrity fell below 50% 1696 | -9/Materials | Identified exit to Mines 1706 | -9/Materials | Entered Mines 1722 | -9/Mines | Met a Derelict bent on vengeance 2063 | -9/Mines | Assisted by bots powering up and referring to "LRC-V3" 2085 | -9/Mines | Learned Materials trap positions 2161 | -9/Mines | Discovered new exit (range 9) 2675 | -9/Mines | Discovered new exit (range 9) 2790 | -9/Mines | Deemed a non-threat by the Exiles lab entrance 2790 | -9/Mines | Discovered new exit (range 5) 2803 | -9/Mines | Identified exit to Exiles 2835 | -9/Mines | Entered Exiles 2835 | -9/Exiles | Found Exiles lab abandoned 2835 | -9/Exiles | Accompanied by 5 allies 2865 | -9/Exiles | Led the pair of lost Derelicts to a safe place 4599 | -9/Exiles | Discovered new exit (range 14) 4793 | -9/Exiles | Discovered new exit (range 14) 6262 | -9/Exiles | Identified exit to Mines 6268 | -9/Exiles | Entered Mines 6268 | -8/Mines | Accompanied by 3 allies 6273 | -8/Mines | Core integrity fell below 20% 6358 | -8/Mines | Destroyed by G-47 Trooper with Particle Gun Last Messages --------------- 05302_ Dropped Enh. Autogun. 05303_ Acquired Beamcaster. 05893_ 14-6K2(z) destroyed. 05896_ Acquired 13 matter. 06262_ EXIT=IDENTIFIED: MINES LOCATION=MINES GOAL=ESCAPE 06269_ S-10 Pest destroyed. 06272_ Plasma Injector explodes. 06272_ Destroyed Lgt. Nuclear Core. 06272_ S-10 Pest destroyed. 06272_ Mercenary 2a destroyed. 06272_ Trooper 2b destroyed. 06321_ Trooper 2a destroyed. 06345_ L-31 Rogue destroyed. 06348_ Acquired 15 matter. 06353_ Carbon-fiber Leg destroyed. 06356_ Acquired Imp. Aluminum Leg. 06357_ Dropped Imp. Assault Rifle. 06358_ Dropped Adv. Beam Cannon. Map ----- +----------------------------------------------------+ | | | ?????????????????????????????????????????????????? | | ?????????????????????????????????????????????????? | | ?????????????????????????????????????????????????? | | ?????????????????????????????????????????????????? | | ?????????????????????????????????????????????????? | | ?????????????????????????????????????????????????? | | ?????????????????????????????????????????????????? | | ?????????????????????????????????????????????????? | | ?????????????????????????????????????????????????? | | ?????????????????????????????????????????????????? | | ???????????????????????????????? ?? ?????????????? | | ???????????????????????????????##??#?????????????? | | ?????????????????????????????????????????????????? | | ?????????????????????????????????????????????????? | | ?????????????????????###?????????????????????????? | | ????????????????????## ##??????????????#????????? | | ????????????????????# ##??????????#?##????????? | | ????????????????????? ##??????????# ????????? | | ?????????????????????# ??#?#??????? #????????? | | ????????????????????## ????????????? #????????? | | ?????????????????####t #???????????# #????????? | | ?????????????????## #???????###### #??#???#?? | | ?????????????????# =#???????# ! #????????? | | ?????????????????# """%##?#???## % #????????? | | ?????????????????## """/@##????#" * ##???????? | | ??????????????????# """g] #???##" [ "#???????? | | ??????????#???????## g #????#" %##???????? | | ???????????????????## ##???#" ["##??????? | | ????????????????????#### #####" %=%"#???????? | | ???????????????????????## " [ ##??#????? | | ????????????????????????## #????????? | | ????????????????????????## ##""# ##????????? | | ?????????????????????????## ### ##### #????#????? | | ???????????????????#??????## #?# #??## #?????????? | | ???????????????????????????# #?# ##??# ##????????? | | ???????????????????#???????# #?# ##### #?????????? | | ???????????????????????????# #?# #?????????? | | ???????????????????????#???# #?####### #?????????? | | ??????????????????????#????? #???????# #????#????? | | ???????????????????????????? #???#???# #?????????? | | ???????????????????????????? #???????# #?????????? | | ????????????????????#?#????? ??#?????# #???#?????? | | ???????????????????????????# ????????# #?????????? | | ???????????????????????????? ????????# #????? ???? | | ???????????????????????????? ????????# ???? ????? | | ?????????????????????????????????????# ?????????? | | ?????????????????????????? ???????????##??? ?????? | | ?????????????????????????????????????????????????? | | ?????????????????????????????????????????????????? | +----------------------------------------------------+ Best States ------------- Heat Dissipation 50 Energy Generation 14 Energy Capacity 280 Matter Stores 300 Matter Capacity 300 Sight Range 16 Terrain Scan Range 16 Terrain Scan Density 10 ECM Strength 1 Armor Coverage 150 Evasion (%) 55 Targeting Accuracy 6 Item Schematics ----------------- None Robot Schematics ------------------ None Fabricated ------------ Nothing Alien Tech Used ----------------- None Achievements -------------- None Challenges ------------ None Game ------ Seed HoverReactiveMace Manual? 0 Play Time 00:21:31 Cumulative 85.4 hours Start 2022.06.06 @ 22:36:19 End 2022.06.06 @ 22:57:35 Sessions 1 Manual Loads 0 Difficulty Rogue Special Mode None Game No. 133 Rogue 87 Adventurer 45 Explorer 1 Win Type - Total 0 Types 0/0/0/0/0/0/0/0/0 Lore% 27 Gallery% 47 Achievement% 34 Wizard Run 0 Options --------- ASCII 0 Keyboard 0 Movement Mouse Keybinds 0 Fullscreen 2 Font 18/X11Bold Map View 76x50 Tactical HUD 1 Map Filters NONE Filters LOW_CONTRAST(13,24,33)|BRIGHTNESS(90)|SATURATION(87) Steam 1 RUN: f1c4e452-9ff0-4f9d-b3af-be1c5faafe97